Organisation Name,Organisation Code,Organisational Unit,Service Category Label,Procurement Category,Supplier Name,Supplier Other ID,Payment Date,Transaction Number,Amount (�),Purpose
Eden District Council,http://opendatacommunities.org/id/district-council/eden,Technical Services Manager,Recycling,Recycling - Garden Waste,CUMBRIA WASTE RECYCLING LTD,CUM022,06/05/2022,201944,35558.86,GW-12-21/22
Eden District Council,http://opendatacommunities.org/id/district-council/eden,Commercial Services Manager,Economic Development and Promotion,Professional fees,LIFESTYLE MEDIA GROUP LTD,CAT003,06/05/2022,201973,856.22,BROCHURE REQUESTS 21.3.22-17.4.22
Eden District Council,http://opendatacommunities.org/id/district-council/eden,Revenue/Benefits Manager,Revenue & Benefits,Unique payments ****,REDACTED INFORMATION,MCA003,06/05/2022,202129,1664.63,COUNCIL TAX REFUND
Eden District Council,http://opendatacommunities.org/id/district-council/eden,Financial Services Manager,Financial Services,Professional fees,CUMBRIA COUNTY COUNCIL LGPS,CUM095,06/05/2022,202138,500,FRS YEAR END RUN
Eden District Council,http://opendatacommunities.org/id/district-council/eden,Chief Executive's,Local Government Review,Local Government Reorganisation - Costs,APSE,APS001,06/05/2022,202147,7150,FEE CUMBRIA LGR WASTE WORK MAR22
Eden District Council,http://opendatacommunities.org/id/district-council/eden,Commercial Services Manager,Town Centres,Grants and contributions,PATTERDALE PARISH COUNCIL,PAT002,06/05/2022,202150,1354.8,WELCOME BACK TO EDEN GRANT ROUND 2
Eden District Council,http://opendatacommunities.org/id/district-council/eden,Commercial Services Manager,Town Centres,Grants and contributions,D H BROUGHTON LTD,BRO062,06/05/2022,202166,1000,EDC HARDSHIP FUND PAYMENT
Eden District Council,http://opendatacommunities.org/id/district-council/eden,Technical Services Manager,Recycling,Recycling - Bag & Box,CUMBRIA WASTE RECYCLING LTD,CUM022,06/05/2022,202171,31761.77,CERT GB-36-21/22
Eden District Council,http://opendatacommunities.org/id/district-council/eden,Technical Services Manager,Recycling,Recycling  - Bring Sites,CUMBRIA WASTE RECYCLING LTD,CUM022,06/05/2022,202172,7266.28,CERT BS-115
Eden District Council,http://opendatacommunities.org/id/district-council/eden,Technical Services Manager,Central Expenses,Other charges for services,ROCKSURE SYSTEMS LTD T/A PEOPLESAFE,ROC005,06/05/2022,201732,521.1,SMARTPHONE SUBSCRIPTIONS
Eden District Council,http://opendatacommunities.org/id/district-council/eden,Information Technology Manager,Information Technology,IT Contracts & Maintenance,SOUTH LAKELAND DISTRICT COUNCIL,SOU006,06/05/2022,201927,5564,40%CONTRIBUTION TO IT SECURITY TRAINING
Eden District Council,http://opendatacommunities.org/id/district-council/eden,Information Technology Manager,Information Technology,Mobile telephone,VODAFONE BUSINESS SOLUTIONS,VOD002,06/05/2022,201958,2399.13,MOBILES
Eden District Council,http://opendatacommunities.org/id/district-council/eden,Environmental Services,Pest Control,Pest Control,RENTOKIL INITIAL PEST CONTROL,REN009,06/05/2022,201962,1094.32,PESTS MISC 1.5.22-31.5.22
Eden District Council,http://opendatacommunities.org/id/district-council/eden,Financial Services Manager,Financial Services,Internal Audit,TIAA LTD,TIA001,06/05/2022,202144,3250,21/22 COUNCIL TAX
Eden District Council,http://opendatacommunities.org/id/district-council/eden,Legal Services Manager,Elections,Printing and stationary,PRINT IMAGE NETWORK LTD,PRI011,06/05/2022,202148,963,EDEN LOCAL CNLS 2022
Eden District Council,http://opendatacommunities.org/id/district-council/eden,Financial Services Manager,Financial Services,Internal Audit,TIAA LTD,TIA001,06/05/2022,202279,3250,21/22 ICT SLA
Eden District Council,http://opendatacommunities.org/id/district-council/eden,Revenue/Benefits Manager,Benefits,Software � purchase,SOUTH LAKELAND DISTRICT COUNCIL,SOU006,06/05/2022,202280,5074.22,50%CAPITA RECHARGE
Eden District Council,http://opendatacommunities.org/id/district-council/eden,Financial Services Manager,Financial Services,Internal Audit,TIAA LTD,TIA001,06/05/2022,202284,650,21/22 AUDIT MANAGMENT - 4
Eden District Council,http://opendatacommunities.org/id/district-council/eden,Legal Services Manager,Elections,Printing and stationary,PRINT IMAGE FACILITIES LLP,PRI014,06/05/2022,202306,930,EDEN GRASS SKIRTS
Eden District Council,http://opendatacommunities.org/id/district-council/eden,Legal Services Manager,Elections,Postages,ROYAL MAIL NW,ROY001,06/05/2022,202311,3616.95,BUSINESS CLASS MAIL
Eden District Council,http://opendatacommunities.org/id/district-council/eden,Transformation & Customers Head of,Corporate Services,Software � maintenance,CIVICA UK LTD,CIV002,06/05/2022,201817,6140,CIVICAPAY -3DSV2 FEE / ANNUALS
Eden District Council,http://opendatacommunities.org/id/district-council/eden,Chief Executive's,Local Government Review,Local Government Reorganisation - Costs,ACADEMIA LTD,ACA004,13/05/2022,202125,19889.75,Phones for new members
Eden District Council,http://opendatacommunities.org/id/district-council/eden,Technical Services Manager,Arts and Leisure,Other charges for services,CLICK NETHERFIELD LTD,CLI008,13/05/2022,202151,1624,PENRITH MUSEUM PRSIM
Eden District Council,http://opendatacommunities.org/id/district-council/eden,Planning Services,Planning Services,Subscriptions & levies,HAYMARKET MEDIA GROUP LTD,HAY019,13/05/2022,202269,5025,DCP ONLINE RENEWAL 1.5.22-30.4.23
Eden District Council,http://opendatacommunities.org/id/district-council/eden,Commercial Services Manager,Commercial Services,Agency Staff,VIVID RESOURCING,VIV001,13/05/2022,202275,2750,time sheet we 24.4.22 gm
Eden District Council,http://opendatacommunities.org/id/district-council/eden,Planning Services,Planning Services,Agency Staff,VIVID RESOURCING,VIV001,13/05/2022,202276,2750,time sheet we 24.4.22 rf
Eden District Council,http://opendatacommunities.org/id/district-council/eden,Environmental Services,1996 Mandatory Renovation Grants,Capital grants,KJS ACCESS SOLUTIONS,KJS001,13/05/2022,202281,1481.09,FIN PAYMENT GRANT REF 210021
Eden District Council,http://opendatacommunities.org/id/district-council/eden,Technical Services Manager,Parks and Open Spaces,GM External Contractors,NORTH WEST ARBORICULTURAL SERVICES LTD,NOR066,13/05/2022,202282,750,TREE WORKS BARCO AVE
Eden District Council,http://opendatacommunities.org/id/district-council/eden,Legal Services Manager,Licensing,Development,UKLS UK LASER SUPPLIES LTD,UKL001,13/05/2022,202286,820,DRINKSAFE COVERS
Eden District Council,http://opendatacommunities.org/id/district-council/eden,Environmental Services,1996 Mandatory Renovation Grants,Capital grants,TK ACCESS SOLUTIONS LTD,THY001,13/05/2022,202303,3605,FIN PAYMENT GRANTREF 210072
Eden District Council,http://opendatacommunities.org/id/district-council/eden,Environmental Services,1996 Mandatory Renovation Grants,Capital grants,TOP NOTCH CONTRACTORS LTD,TOP003,13/05/2022,202304,5500,INT PAYMENT GRANTREF 210062
Eden District Council,http://opendatacommunities.org/id/district-council/eden,Legal Services Manager,Committee and Member Costs,Equipment hire,SOUNDSMITH LIMITED,SOU021,13/05/2022,202317,1800,EQUIP 28.04.22 THE CUMBERLAND HALL
Eden District Council,http://opendatacommunities.org/id/district-council/eden,Commercial Services Manager,Economic Development and Promotion,Professional fees,CUMBRIA CHAMBER OF COMMERCE AND INDUSTRY,CUM003,13/05/2022,202367,7346.5,BSUS ACTIVITY APR22 TO JUNE 23
Eden District Council,http://opendatacommunities.org/id/district-council/eden,Information Technology Manager,Information Technology,Computer equipment,THE NETWORKING PEOPLE (NORTHWEST) LIMITED,TNP001,13/05/2022,202382,650,PRO SERVICE - DAYS
Eden District Council,http://opendatacommunities.org/id/district-council/eden,Commercial Services Manager,Economic Development and Promotion,Professional fees,INSPIRA CUMBRIA LTD,INS021,13/05/2022,202386,9000,EDEN YOUTH HUB APR-JUN22
Eden District Council,http://opendatacommunities.org/id/district-council/eden,Commercial Services Manager,Town Centres,Professional fees,H&H REEDS PRINTERS LTD,REE001,13/05/2022,202390,1091,VILLAGE WALKS BOROGHGATE
Eden District Council,http://opendatacommunities.org/id/district-council/eden,Planning Services,Planning Services,Agency Staff,VIVID RESOURCING,VIV001,13/05/2022,202400,2500,TIME SHEET WE 1.5.22 JS
Eden District Council,http://opendatacommunities.org/id/district-council/eden,Commercial Services Manager,Commercial Services,Agency Staff,VIVID RESOURCING,VIV001,13/05/2022,202404,2750,TIME SHEET WE 1.5.22 GM
Eden District Council,http://opendatacommunities.org/id/district-council/eden,Commercial Services Manager,Economic Development and Promotion,Professional fees,INSPIRA CUMBRIA LTD,INS021,13/05/2022,202409,1000,EDEN YOUTH HUB -ADDITIONAL ACTIVITY
Eden District Council,http://opendatacommunities.org/id/district-council/eden,Technical Services Manager,Parks and Open Spaces,GM External Contractors,NORTH WEST ARBORICULTURAL SERVICES LTD,NOR066,13/05/2022,202424,750,TREE WORKS PINFOLD
Eden District Council,http://opendatacommunities.org/id/district-council/eden,Commercial Services Manager,Economic Development and Promotion,Professional fees,PEOPLE JUNCTION,PEO003,13/05/2022,202429,2500,TOURISM AWARDS/ TICKETS 22
Eden District Council,http://opendatacommunities.org/id/district-council/eden,Technical Services Manager,Public Conveniences,Building Maintenance,URBASER LIMITED,URB002,13/05/2022,201947,2400.8,BUILDING RESPONSE AD HOC FEB 22
Eden District Council,http://opendatacommunities.org/id/district-council/eden,Community Service Assistant Director,Queens Platinum Jubliee,Grants and contributions,SOULBY MEMORIAL HALL TRUST,SOU017,13/05/2022,202174,800,QUEENS JUBILEE GRANT AWARD
Eden District Council,http://opendatacommunities.org/id/district-council/eden,Commercial Services Manager,Penrith TIC Trading Account,Unique payments ****,PENRITH MUSIC CLUB,PEN055,13/05/2022,202312,540,TICKET SALES21/22 SEASON
Eden District Council,http://opendatacommunities.org/id/district-council/eden,Community Service Assistant Director,Queens Platinum Jubliee,Grants and contributions,ORTON PARISH COUNCIL,ORT003,13/05/2022,202322,800,QUEENS JUBILEE 1ST PAYMENT
Eden District Council,http://opendatacommunities.org/id/district-council/eden,Community Service Assistant Director,Queens Platinum Jubliee,Grants and contributions,THE STUDIO MORLAND,STU007,13/05/2022,202323,800,QUEENS JUBILEE 1ST PAYMENT
Eden District Council,http://opendatacommunities.org/id/district-council/eden,Commercial Services Manager,Commercial Services,Agency Staff,VIVID RESOURCING,VIV001,13/05/2022,202402,4375,TIME SHEET WE 1.5.22 FM
Eden District Council,http://opendatacommunities.org/id/district-council/eden,Technical Services Manager,Administrative Buildings,Water charges � metered,WATER PLUS,UNI008,13/05/2022,202426,707.48,MANSION HOUSE 2.4.22-1.5.22
Eden District Council,http://opendatacommunities.org/id/district-council/eden,Community Service Assistant Director,Queens Platinum Jubliee,Grants and contributions,THRELKELD ACTIVITIES ASSOCIATION,THR014,13/05/2022,202431,800,QUEENS JUBILEE AWARD 1ST PAYMENT
Eden District Council,http://opendatacommunities.org/id/district-council/eden,Legal Services Manager,Licensing,Hackney p/hire vehicles,LAKELAND COMMERCIALS LTD,LAK039,13/05/2022,201681,660,REFUND FOR RENEWAL LICENCES
Eden District Council,http://opendatacommunities.org/id/district-council/eden,Community Service Assistant Director,Queens Platinum Jubliee,Grants and contributions,KINGS MEABURN INSTITUTE TREASURER ACCOUNT,KIN009,13/05/2022,202296,800,QUEENS JUBILEE GRANT 1ST PAYMENT
Eden District Council,http://opendatacommunities.org/id/district-council/eden,Technical Services Manager,Arts and Leisure,Grants and contributions,HUNSONBY SWIMMING CLUB,HUN003,13/05/2022,202320,1125,RURAL POOLS GRANT AWARD 2022
Eden District Council,http://opendatacommunities.org/id/district-council/eden,Chief Executive's,Corporate Costs,Subscriptions & levies,DISTRICT COUNCILS NETWORK,DIS007,13/05/2022,202366,1424,ANNUAL MEMBERSHIP 2022/23
Eden District Council,http://opendatacommunities.org/id/district-council/eden,Commercial Services Manager,Economic Development and Promotion,Grants and contributions,ASKINS AND LITTLE LTD,ASK012,13/05/2022,202371,500,FINAL APPRENTICE PAYMENT MA
Eden District Council,http://opendatacommunities.org/id/district-council/eden,Technical Services Manager,Land Management,Professional expenses,BAKER MALLETT LLP,BAK010,13/05/2022,202392,732,COST PLAN/TENDER/ FEES NR17
Eden District Council,http://opendatacommunities.org/id/district-council/eden,Technical Services Manager,Land Management,Professional expenses,BAKER MALLETT LLP,BAK010,13/05/2022,202393,1848,PROJECT MANAGER APR22 NR16
Eden District Council,http://opendatacommunities.org/id/district-council/eden,Technical Services Manager,Arts and Leisure,Grants and contributions,GREYSTOKE & DISTRICT SPORTS ASSOCIATION,GRE020,13/05/2022,202411,1559,EDEN RURAL POOL GRANT 2022
Eden District Council,http://opendatacommunities.org/id/district-council/eden,Community Service Assistant Director,Queens Platinum Jubliee,Grants and contributions,HUNSONBY SWIMMING CLUB,HUN017,13/05/2022,202436,800,QUEENS JUBILEE GRANT 1ST PAYMENT
Eden District Council,http://opendatacommunities.org/id/district-council/eden,Technical Services Manager,Cemeteries,GM External Contractors,HEATONS GROUP LTD,LAK004,13/05/2022,201717,1040.07,STATIONERY / PAPER / CHAIRS
Eden District Council,http://opendatacommunities.org/id/district-council/eden,Information Technology Manager,Information Technology,IT Contracts & Maintenance,THE NETWORKING PEOPLE (NORTHWEST) LIMITED,TNP001,13/05/2022,201749,650,TNP PRO SERVICE DAYS
Eden District Council,http://opendatacommunities.org/id/district-council/eden,Chief Executive's,Local Government Review,Local Government Reorganisation - Costs,VOHKUS LTD,VOH001,13/05/2022,201955,717.97,SYMMETRY TELLURIDE
Eden District Council,http://opendatacommunities.org/id/district-council/eden,Environmental Services,1996 Mandatory Renovation Grants,Capital grants,PPM LTD,PPM001,13/05/2022,201972,5457,FIN PAYMENT GRANT REF 210061
Eden District Council,http://opendatacommunities.org/id/district-council/eden,Environmental Services,1996 Mandatory Renovation Grants,Capital grants,PPM LTD,PPM001,13/05/2022,201974,4948,FIN PAYMENT GRANT REF 210054
Eden District Council,http://opendatacommunities.org/id/district-council/eden,Environmental Services,1996 Mandatory Renovation Grants,Capital grants,PPM LTD,PPM001,13/05/2022,201975,3508,FIN PAYMENT GRANT REF 210052
Eden District Council,http://opendatacommunities.org/id/district-council/eden,Environmental Services,Home Improvement Agency,Professional fees,ANTHONY COLLINS SOLICITORS LLP,ANT007,13/05/2022,202122,3340,advice beis
Eden District Council,http://opendatacommunities.org/id/district-council/eden,Planning Services,Planning Services,Agency Staff,G2 RECRUITMENT SOLUTIONS,G2R001,13/05/2022,202128,1597.5,TIME SHEET JH WE 17.4.22
Eden District Council,http://opendatacommunities.org/id/district-council/eden,Commercial Services Manager,Commercial Services,Agency Staff,VIVID RESOURCING,VIV001,13/05/2022,202130,8312.5,TIME SHEET WE 10.4 AND 17.4.22 FM
Eden District Council,http://opendatacommunities.org/id/district-council/eden,Planning Services,Planning Services,Agency Staff,VIVID RESOURCING,VIV001,13/05/2022,202132,2220,TIME SHEET WE 17.4.22 PJ
Eden District Council,http://opendatacommunities.org/id/district-council/eden,Planning Services,Planning Services,Agency Staff,VIVID RESOURCING,VIV001,13/05/2022,202134,684.76,TIME SHEET WE 17.4.22 DM
Eden District Council,http://opendatacommunities.org/id/district-council/eden,Planning Services,Planning Services,Agency Staff,VIVID RESOURCING,VIV001,13/05/2022,202135,2000,TIME SHEET WE 17.4.22 JS
Eden District Council,http://opendatacommunities.org/id/district-council/eden,Environmental Services,Environmental Services,Agency Staff,VIVID RESOURCING,VIV001,13/05/2022,202136,1230,TIME SHEET WE 17.4.22 BN
Eden District Council,http://opendatacommunities.org/id/district-council/eden,Transformation & Customers Head of,Central Expenses,Postages,CUMBRIA MAILING SERVICES LTD,CUM011,13/05/2022,202165,676.48,REFUSE SACKS MAILING
Eden District Council,http://opendatacommunities.org/id/district-council/eden,Legal Services Manager,Land Management,Planned Maintenance,URBASER LIMITED,URB002,20/05/2022,202452,3578.44,RENEW BOUNDARY FENCE
Eden District Council,http://opendatacommunities.org/id/district-council/eden,Legal Services Manager,Land Management,Planned Maintenance,URBASER LIMITED,URB002,20/05/2022,202453,3100,NEW ACCESS BOUDARY
Eden District Council,http://opendatacommunities.org/id/district-council/eden,Human Resources Manager,Central Expenses,Welfare,REDACTED INFORMATION,NIE002,20/05/2022,202457,900,may22 3 sessions
Eden District Council,http://opendatacommunities.org/id/district-council/eden,Technical Services Manager,Emergency Planning and Works,Grounds Maint Contract additional works,URBASER LIMITED,URB002,20/05/2022,202458,5208.54,GM FRENCHFIELD MAR22
Eden District Council,http://opendatacommunities.org/id/district-council/eden,Revenue/Benefits Manager,Collection of Local Taxation,Software � maintenance,SOUTH LAKELAND DISTRICT COUNCIL,SOU006,20/05/2022,202167,21142,RECHARGE 40% SOFTWARE MAINT REVS PRODUCT
Eden District Council,http://opendatacommunities.org/id/district-council/eden,Commercial Services Manager,Economic Development and Promotion,Professional fees,LIFESTYLE MEDIA GROUP LTD,CAT003,20/05/2022,202408,1612,brochures from 1.04.22
Eden District Council,http://opendatacommunities.org/id/district-council/eden,Legal Services Manager,Elections,Printing and stationary,PRINT IMAGE NETWORK LTD,PRI011,20/05/2022,202414,682,EDEN LOCAL LARGE PRINT 2022
Eden District Council,http://opendatacommunities.org/id/district-council/eden,Technical Services Manager,Footway Lighting,Electricity,NPOWER LTD,NPO001,20/05/2022,202437,6603.19,MH ST LIGHTING 1.4.22-30.04.22
Eden District Council,http://opendatacommunities.org/id/district-council/eden,Community Service Assistant Director,Queens Platinum Jubliee,Grants and contributions,MATTERDALE COMMUNITY ASSOCIATION,MAT014,20/05/2022,202440,621,QUEENS JUBILEE GRANT 1ST PAYMENT
Eden District Council,http://opendatacommunities.org/id/district-council/eden,Technical Services Manager,Recycling,material price fluctuations,CUMBRIA WASTE RECYCLING LTD,CUM022,20/05/2022,202441,517.44,CERT BS-F-92 2021/22
Eden District Council,http://opendatacommunities.org/id/district-council/eden,Legal Services Manager,Elections,Postages,ROYAL MAIL NW,ROY001,20/05/2022,202444,1516.28,RESPONSE PLUS
Eden District Council,http://opendatacommunities.org/id/district-council/eden,Community Service Assistant Director,Queens Platinum Jubliee,Grants and contributions,SHAP PARISH COUNCIL,SHA008,20/05/2022,202460,624,QUEENS JUBLIEE GRANT 1ST PAYMENT
Eden District Council,http://opendatacommunities.org/id/district-council/eden,Community Service Assistant Director,Queens Platinum Jubliee,Grants and contributions,TEMPLE SOWERBY VICTORY HALL,TEM005,20/05/2022,202461,538,QUEENS JUBLIEE GRANT 1ST PAYMENT
Eden District Council,http://opendatacommunities.org/id/district-council/eden,Chief Executive's,Local Government Review,Local Government Reorganisation - Costs,VOHKUS LTD,VOH001,20/05/2022,202283,-661.76,CREDIT AGAINST SO10640583
Eden District Council,http://opendatacommunities.org/id/district-council/eden,Legal Services Manager,Land Management,Land Management Contract,WALTON GOODLAND LTD,WAL008,20/05/2022,202321,5328.75,CASTLE PARK TENNIS COURTS
Eden District Council,http://opendatacommunities.org/id/district-council/eden,Technical Services Manager,Cemeteries,ADHOC WORKS FOR BURIALS,URBASER LIMITED,URB002,20/05/2022,202459,1035.37,BURIALS MAR22
Eden District Council,http://opendatacommunities.org/id/district-council/eden,Commercial Services Manager,Museum,Museum exhibits,CLICK NETHERFIELD LTD,CLI008,20/05/2022,201705,2465.45,PENRITH MUSEUM REMAINING 65% due
Eden District Council,http://opendatacommunities.org/id/district-council/eden,Chief Executive's,Local Government Review,Local Government Reorganisation - Costs,VOHKUS LTD,VOH001,20/05/2022,201716,967.28,LOGITECH WIRELESS DESKTOPS
Eden District Council,http://opendatacommunities.org/id/district-council/eden,Chief Executive's,Local Government Review,Local Government Reorganisation - Costs,COMPUTACENTER (UK) LTD,COM023,20/05/2022,202119,853.05,POWER ADAPTERS
Eden District Council,http://opendatacommunities.org/id/district-council/eden,Planning Services,Planning Services,Agency Staff,G2 RECRUITMENT SOLUTIONS,G2R001,20/05/2022,202268,1665,TIME SHEET WE 24.4.22 JH
Eden District Council,http://opendatacommunities.org/id/district-council/eden,Planning Services,Planning Services,Agency Staff,VIVID RESOURCING,VIV001,20/05/2022,202271,2220,TIME SHEET WE 24.04.22 PJH
Eden District Council,http://opendatacommunities.org/id/district-council/eden,Planning Services,Planning Services,Agency Staff,VIVID RESOURCING,VIV001,20/05/2022,202272,670.98,TIME SHEET WE 22.4.22 DM
Eden District Council,http://opendatacommunities.org/id/district-council/eden,Planning Services,Planning Services,Agency Staff,VIVID RESOURCING,VIV001,20/05/2022,202273,2000,time sheet we 24.04.22 js
Eden District Council,http://opendatacommunities.org/id/district-council/eden,Commercial Services Manager,Commercial Services,Agency Staff,VIVID RESOURCING,VIV001,20/05/2022,202274,3500,time sheet we 24.04.22 fm
Eden District Council,http://opendatacommunities.org/id/district-council/eden,Financial Services Manager,Financial Services,Printing and stationary,HEATONS GROUP LTD,LAK004,20/05/2022,202326,769.71,STATIONERY / PAPER
Eden District Council,http://opendatacommunities.org/id/district-council/eden,Commercial Services Manager,Commercial Services,Agency Staff,REDACTED INFORMATION,BAL010,20/05/2022,202368,3900,TEAM SUPPORT APR22
Eden District Council,http://opendatacommunities.org/id/district-council/eden,Financial Services Manager,Financial Services,Agency Staff,CIPFA PENNA,CIP013,20/05/2022,202395,12265.5,INTERIM MANAGEMENT APRIL 22 DB
Eden District Council,http://opendatacommunities.org/id/district-council/eden,Financial Services Manager,Financial Services,Agency Staff,CIPFA PENNA,CIP013,20/05/2022,202396,16720,INTERIM MANAGMENT APR22 PS
Eden District Council,http://opendatacommunities.org/id/district-council/eden,Planning Services,Planning Services,Agency Staff,VIVID RESOURCING,VIV001,20/05/2022,202398,2280,TIME SHEET WE 01.5.22 PJ
Eden District Council,http://opendatacommunities.org/id/district-council/eden,Planning Services,Planning Services,Agency Staff,VIVID RESOURCING,VIV001,20/05/2022,202399,2200,TIME SHEET WE 01.05.22 RF
Eden District Council,http://opendatacommunities.org/id/district-council/eden,Planning Services,Planning Services,Agency Staff,VIVID RESOURCING,VIV001,20/05/2022,202401,817.26,TIME SHEET WE 1.5.22 DM
Eden District Council,http://opendatacommunities.org/id/district-council/eden,Environmental Services,Environmental Services,Agency Staff,VIVID RESOURCING,VIV001,20/05/2022,202403,980,TIME SHEET  WE1.5.22 BN
Eden District Council,http://opendatacommunities.org/id/district-council/eden,Planning Services,Planning Services,Agency Staff,G2 RECRUITMENT SOLUTIONS,G2R001,20/05/2022,202407,2056.95,time sheet and mileage we 1.5.22 jh
Eden District Council,http://opendatacommunities.org/id/district-council/eden,Technical Services Manager,Emergency Planning and Works,Miscellaneous,URBASER LIMITED,URB002,20/05/2022,202421,1181.36,BUILDING RESPONSE AD HOC MAR22
Eden District Council,http://opendatacommunities.org/id/district-council/eden,Community Service Assistant Director,Queens Platinum Jubliee,Grants and contributions,ST JAMES CHURCH,STJ008,27/05/2022,202584,800,THE QUEENS GRANT JUBILEE
Eden District Council,http://opendatacommunities.org/id/district-council/eden,Community Service Assistant Director,Queens Platinum Jubliee,Grants and contributions,TEMPLE SOWERBY VICTORY HALL,TEM005,27/05/2022,202585,538,THE QUEENS GRANT JUBILEE
Eden District Council,http://opendatacommunities.org/id/district-council/eden,Community Service Assistant Director,Queens Platinum Jubliee,Grants and contributions,HUNSONBY COMMUNITY CENTRE,HUN001,27/05/2022,202586,512,THE QUEENS GRANT JUBILEE
Eden District Council,http://opendatacommunities.org/id/district-council/eden,Community Service Assistant Director,Queens Platinum Jubliee,Grants and contributions,TEMPLE SOWERBY PARISH COUNCIL,TEM001,27/05/2022,202590,692,THE QUEENS GRANT JUBILEE
Eden District Council,http://opendatacommunities.org/id/district-council/eden,Legal Services Manager,Corporate Costs,Subscriptions & levies,LOCAL GOVERNMENT ASSOCIATION,LOC005,09/05/2022,202642,5542.8,LGA membership 09/05/22
Eden District Council,http://opendatacommunities.org/id/district-council/eden,Legal Services Manager,Land Management,Building Maintenance,ENVIRONMENT AGENCY,ENV004,16/05/2022,202647,718,Environment Agency annual DD 16/05/22
Eden District Council,http://opendatacommunities.org/id/district-council/eden,Technical Services Manager,Vehicle Parking Off Street,Subscriptions & levies,BRITISH PARKING ASSOCIATION,BRI019,27/05/2022,202541,681,BPA MEMBERSHIP JUNE22-MAY23
Eden District Council,http://opendatacommunities.org/id/district-council/eden,Environmental Services,1996 Mandatory Renovation Grants,Capital grants,C W COX & SONS (KENDAL)  LTD,COX001,27/05/2022,202544,5775,FIN PAYMENT GRANT REF 210097
Eden District Council,http://opendatacommunities.org/id/district-council/eden,Technical Services Manager,Vehicle Parking Off Street,Abnormal maintenance,FLOWBIRD SMART CITY UK LTD,FLO011,27/05/2022,202551,3432,PARKING EQUIPMENT
Eden District Council,http://opendatacommunities.org/id/district-council/eden,Commercial Services Manager,Economic Development and Promotion,Special Projects,MANNING ELLIOTT,MAN013,27/05/2022,202560,500,TWO LIONS CAD DRAWINGS
Eden District Council,http://opendatacommunities.org/id/district-council/eden,Commercial Services Manager,Commercial Services,Agency Staff,VIVID RESOURCING,VIV001,27/05/2022,202572,2750,TIME SHEET WE 8.5.22 GM
Eden District Council,http://opendatacommunities.org/id/district-council/eden,Community Service Assistant Director,Queens Platinum Jubliee,Grants and contributions,ALSTON MOOR PARISH COUNCIL,ALS005,27/05/2022,202698,800,QUEENS PLATINUM JUBILEE GRANT
Eden District Council,http://opendatacommunities.org/id/district-council/eden,Information Technology Manager,Information Technology,Computer equipment,Ballicom Limited,BAL011,27/05/2022,202578,4399.95,LAPTOP
Eden District Council,http://opendatacommunities.org/id/district-council/eden,Human Resources Manager,Central Expenses,Advertising,CUMBRIAN NEWSPAPERS LTD,CUM024,27/05/2022,202660,661,april ads
Eden District Council,http://opendatacommunities.org/id/district-council/eden,Commercial Services Manager,Commercial Services,Agency Staff,VIVID RESOURCING,VIV001,27/05/2022,202669,2750,TIME SHEET WE 15.5.22 GM
Eden District Council,http://opendatacommunities.org/id/district-council/eden,Planning Services,Planning Services,Agency Staff,VIVID RESOURCING,VIV001,27/05/2022,202671,2500,time sheet we 15.5.22 js
Eden District Council,http://opendatacommunities.org/id/district-council/eden,Commercial Services Manager,Commercial Services,Agency Staff,VIVID RESOURCING,VIV001,27/05/2022,202673,4375,time sheet we 15.5.22 fm
Eden District Council,http://opendatacommunities.org/id/district-council/eden,Environmental Services,1996 Mandatory Renovation Grants,Capital grants,HANDICARE ACCESSIBILITY LTD,FRE002,27/05/2022,202701,1560,INT PAYMENT GRANT REF 210088
Eden District Council,http://opendatacommunities.org/id/district-council/eden,Commercial Services Manager,Community Development & Engagement,Community engagement development,CUMBRIA COUNTY COUNCIL,CCC002,27/05/2022,201658,2000,CITIZEN SPACE 22/23
Eden District Council,http://opendatacommunities.org/id/district-council/eden,Legal Services Manager,Land Management,Building Maintenance,G C A GARDENING SERVICES,GCA001,27/05/2022,202377,698.01,fencing works appleby
Eden District Council,http://opendatacommunities.org/id/district-council/eden,Revenue/Benefits Manager,Revenue & Benefits,Software � maintenance,CIVICA UK LTD,CIV002,27/05/2022,202535,8317.5,IMPLEMENT FEES WEBPAY STAFF
Eden District Council,http://opendatacommunities.org/id/district-council/eden,Revenue/Benefits Manager,Revenue & Benefits,Software � maintenance,CIVICA UK LTD,CIV002,27/05/2022,202536,600,ADMIN FOR VERIFONE
Eden District Council,http://opendatacommunities.org/id/district-council/eden,Commercial Services Manager,Town Centres,Grants and contributions,CUMBRIA CVS,CUM080,27/05/2022,202548,23700,SUPPORT CUMBRIA CVS (EDEN DC) 2022/23
Eden District Council,http://opendatacommunities.org/id/district-council/eden,Commercial Services Manager,Economic Development and Promotion,Grants and contributions,APPLEBY TOWN COUNCIL,APP001,27/05/2022,202549,20000,2ND INSTALLMENT MOOT HALL REPAIRS
Eden District Council,http://opendatacommunities.org/id/district-council/eden,Commercial Services Manager,Community Development & Engagement,Community Fund,CUMBRIA OPERA GROUP,CUM133,27/05/2022,202550,1500,1ST PAYMENT EDEN COMMUNITY FUND GRANT
Eden District Council,http://opendatacommunities.org/id/district-council/eden,Commercial Services Manager,Community Development & Engagement,Community Fund,KIRKBY STEPHEN COMMUNITY SUPPORT ASSOC.,KIR051,27/05/2022,202561,3750,1ST PAYMENT EDEN COMMUNITY FUND
Eden District Council,http://opendatacommunities.org/id/district-council/eden,Commercial Services Manager,Economic Development and Promotion,Advertising,LIFESTYLE MEDIA GROUP LTD,CAT003,27/05/2022,202579,639.84,BROCHURES 18.4.22-15.5.22
Eden District Council,http://opendatacommunities.org/id/district-council/eden,Commercial Services Manager,Economic Development and Promotion,Advertising,BARRNON MEDIA LTD,CUM001,27/05/2022,202670,1300,BUS SUPPLMENT AD 14.5.22
Eden District Council,http://opendatacommunities.org/id/district-council/eden,Technical Services Manager,Land Management,Planned Maintenance,DYNAMIC JOINERY LTD,DYN004,27/05/2022,202688,2712,REPAIRS TO CAB ROOF
Eden District Council,http://opendatacommunities.org/id/district-council/eden,Environmental Services,Environmental Services,Agency Staff,VIVID RESOURCING,VIV001,27/05/2022,201932,1300,TIME SHEET WE 10.4.22 BN
Eden District Council,http://opendatacommunities.org/id/district-council/eden,Technical Services Manager,Land Management,Professional expenses,MBSP CONSULTANCY LTD,MBS001,27/05/2022,202370,7200,ONE EDEN APR22
Eden District Council,http://opendatacommunities.org/id/district-council/eden,Commercial Services Manager,Economic Development and Promotion,Professional fees,WALTON GOODLAND LTD,WAL008,27/05/2022,202405,3149.5,RATE FOR SURVEYOR APR22
Eden District Council,http://opendatacommunities.org/id/district-council/eden,Legal Services Manager,Elections,Postages,ROYAL MAIL NW,ROY001,27/05/2022,202533,975.52,RESPONSE PLUS
Eden District Council,http://opendatacommunities.org/id/district-council/eden,Environmental Services,Pest Control,Pest Control,RENTOKIL INITIAL PEST CONTROL,REN009,27/05/2022,202538,1094.32,PESTS MISC 1.6.22-30.06.22
Eden District Council,http://opendatacommunities.org/id/district-council/eden,Community Service Assistant Director,Queens Platinum Jubliee,Grants and contributions,STAINTON VILLAGE HALL CIO,STA018,27/05/2022,202552,640,QUEENS JUBILEE 1ST PAYMENT
Eden District Council,http://opendatacommunities.org/id/district-council/eden,Legal Services Manager,Elections,Printing and stationary,PRINT IMAGE NETWORK LTD,PRI011,27/05/2022,202553,6583.6,EDEN LOCAL FLEXI VOTE22
Eden District Council,http://opendatacommunities.org/id/district-council/eden,Technical Services Manager,Cemeteries,GM External Contractors,URBASER LIMITED,URB002,27/05/2022,202565,2204.18,CERT GM201
Eden District Council,http://opendatacommunities.org/id/district-council/eden,Technical Services Manager,Cemeteries,ADHOC WORKS FOR BURIALS,URBASER LIMITED,URB002,27/05/2022,202566,540.18,CERT GM200
Eden District Council,http://opendatacommunities.org/id/district-council/eden,Legal Services Manager,Elections,Printing and stationary,PRINT IMAGE NETWORK LTD,PRI011,27/05/2022,202582,6121.7,EDEN22 BALLOT BOOKS
Eden District Council,http://opendatacommunities.org/id/district-council/eden,Financial Services Manager,Resources Capital,Sale of Land,GELDARDS LLP,GEL002,27/05/2022,202662,857.5,FEES RE SALE OF PENRITH CEMETERY CHAPEL
Eden District Council,http://opendatacommunities.org/id/district-council/eden,Technical Services Manager,Refuse Collection,Refuse Contract Dayworks,URBASER LIMITED,URB002,27/05/2022,202666,1814.92,CERT RC113
Eden District Council,http://opendatacommunities.org/id/district-council/eden,Technical Services Manager,Street Cleaning,Street Cleaning Contract,URBASER LIMITED,URB002,27/05/2022,202679,2874.35,CERT SC103
Eden District Council,http://opendatacommunities.org/id/district-council/eden,Commercial Services Manager,Commercial Services,Agency Staff,VIVID RESOURCING,VIV001,27/05/2022,201933,2750,TIME SHEET WE GM 10.4.22
Eden District Council,http://opendatacommunities.org/id/district-council/eden,Environmental Services,Environmental Services,Agency Staff,VIVID RESOURCING,VIV001,27/05/2022,202270,1080,TIME SHEET WE 24.04.22 BN
Eden District Council,http://opendatacommunities.org/id/district-council/eden,Chief Executive's,Chief Executive,Agency Staff,CIPFA PENNA,CIP013,27/05/2022,202439,22420,INTERIM MANAGEMENT IF APR22
Eden District Council,http://opendatacommunities.org/id/district-council/eden,Technical Services Manager,Parks and Open Spaces,GroundsMaintenanceSeats&AmenitiesProvSum,RURAL LANDSCAPES CUMBRIA,RUR007,27/05/2022,202531,2318.42,SCAWS PLAYGROUND
Eden District Council,http://opendatacommunities.org/id/district-council/eden,Legal Services Manager,Elections,Hire of premises,GREENWICH LEISURE LTD,NCL001,27/05/2022,202540,2342.91,HALL HIRE ELECTIONS
Eden District Council,http://opendatacommunities.org/id/district-council/eden,Environmental Services,1996 Mandatory Renovation Grants,Capital grants,DAY CUMMINS LTD,DAY002,27/05/2022,202542,1218,ARC FEES GRANT REF 210103
Eden District Council,http://opendatacommunities.org/id/district-council/eden,Legal Services Manager,Elections,Equipment � erection & dismantling (poll,DYNAMIC JOINERY LTD,DYN004,27/05/2022,202545,7500,BALLOT BOX COLLECTION
Eden District Council,http://opendatacommunities.org/id/district-council/eden,Transformation & Customers Head of,Corporate Services,Equipment � maintenance,CCS MEDIA LTD,CCS001,27/05/2022,202546,556.94,EPOS SENNHEISER ADAPT 60
Eden District Council,http://opendatacommunities.org/id/district-council/eden,Transformation & Customers Head of,Communications Services,Social Media,NLA MEDIA ACCESS LTD,NLA001,27/05/2022,202563,3172,LICENCE FEE 28.5.22-27.523
Eden District Council,http://opendatacommunities.org/id/district-council/eden,Planning Services,Planning Services,Agency Staff,G2 RECRUITMENT SOLUTIONS,G2R001,27/05/2022,202567,1665,TIME SHEET WE 08.5.22 JH
Eden District Council,http://opendatacommunities.org/id/district-council/eden,Planning Services,Planning Services,Agency Staff,VIVID RESOURCING,VIV001,27/05/2022,202570,636,TIME SHEET WE 8.5.22 DM
Eden District Council,http://opendatacommunities.org/id/district-council/eden,Planning Services,Planning Services,Agency Staff,VIVID RESOURCING,VIV001,27/05/2022,202571,2220,TIME SHEET WE8.5.22 PJ
Eden District Council,http://opendatacommunities.org/id/district-council/eden,Commercial Services Manager,Commercial Services,Agency Staff,VIVID RESOURCING,VIV001,27/05/2022,202574,3500,TIME SHEET WE 08.5.22 FM
Eden District Council,http://opendatacommunities.org/id/district-council/eden,Planning Services,Planning Services,Agency Staff,VIVID RESOURCING,VIV001,27/05/2022,202575,2000,TIME SHEET WE 8.5.22 JS
Eden District Council,http://opendatacommunities.org/id/district-council/eden,Environmental Services,1996 Mandatory Renovation Grants,Capital grants,PPM LTD,PPM001,27/05/2022,202581,5106,FINAL PAYMENT GRANT 210077
Eden District Council,http://opendatacommunities.org/id/district-council/eden,Commercial Services Manager,Tourism Promotion,Subscriptions & levies,SIMPLEVIEW EUROPE (NEW MIND INTERNET CONSULTANCY LTD),SIM021,27/05/2022,202596,1245,ANNUAL COSTS JUN22-MAY23
Eden District Council,http://opendatacommunities.org/id/district-council/eden,Technical Services Manager,Recycling,Recycling - Garden Waste,CUMBRIA WASTE RECYCLING LTD,CUM022,01/06/2022,202600,37383.56,CERT GW-1-22/23
Eden District Council,http://opendatacommunities.org/id/district-council/eden,Technical Services Manager,Vehicle Parking Off Street,Contract parking Service,CUMBRIA COUNTY COUNCIL,CCC002,01/06/2022,202674,2666.2,PENALTY CHARGE PROCESSING Q4 21/22
Eden District Council,http://opendatacommunities.org/id/district-council/eden,Financial Services Manager,Financial Services,Internal Audit,TIAA LTD,TIA001,01/06/2022,202681,3250,21/22 IST CYBER SECURITY /FRAUD
Eden District Council,http://opendatacommunities.org/id/district-council/eden,Financial Services Manager,Financial Services,Agency Staff,CASTLEFIELD RECRUITMENT LTD,CAS016,01/06/2022,202682,2100,TIME SHEET 9.5.22-15.2.22 SH
Eden District Council,http://opendatacommunities.org/id/district-council/eden,Technical Services Manager,Land Management,Building works,MARSH LTD,MAR046,01/06/2022,202690,3659.82,INSURANCE COMMERCIAL 4.3.22-31.3.23
Eden District Council,http://opendatacommunities.org/id/district-council/eden,Technical Services Manager,Administrative Buildings,Gas,GAZPROM ENERGY,GAZ001,01/06/2022,202709,628.28,TH
Eden District Council,http://opendatacommunities.org/id/district-council/eden,Technical Services Manager,Administrative Buildings,Gas,GAZPROM ENERGY,GAZ001,01/06/2022,202710,501.31,MH
Eden District Council,http://opendatacommunities.org/id/district-council/eden,Environmental Services,Housing Delivery,Professional fees,SOUTH LAKELAND DISTRICT COUNCIL,SOU006,01/06/2022,202713,3000,CONTINGENCY PAYMENT CUMBRIA CHOICE 22/23
Eden District Council,http://opendatacommunities.org/id/district-council/eden,Environmental Services,Housing Delivery,Professional fees,SOUTH LAKELAND DISTRICT COUNCIL,SOU006,01/06/2022,202714,1694.18,PROJECT MANAGER CUMBRIA CHOICE 22/23
Eden District Council,http://opendatacommunities.org/id/district-council/eden,Commercial Services Manager,Commercial Services,Grants and contributions,NATIONAL FEDERATION OF SELF EMPLOYED AND SMALL BUSINESS LTD,NAT039,01/06/2022,202594,2360,FSB BILK PURCHASE APR 22
Eden District Council,http://opendatacommunities.org/id/district-council/eden,Technical Services Manager,Recycling,Garden Waste Skips,CUMBRIA WASTE RECYCLING LTD,CUM022,01/06/2022,202651,4766,SKIPS BAMPTON
Eden District Council,http://opendatacommunities.org/id/district-council/eden,Planning Services,Planning Services,Agency Staff,G2 RECRUITMENT SOLUTIONS,G2R001,01/06/2022,202665,1665,TIME SHEET WE 15.05.22 JH
Eden District Council,http://opendatacommunities.org/id/district-council/eden,Planning Services,Planning Services,Agency Staff,VIVID RESOURCING,VIV001,01/06/2022,202667,2280,TIME SHEET WE 15.5.22 PJ
Eden District Council,http://opendatacommunities.org/id/district-council/eden,Planning Services,Planning Services,Agency Staff,VIVID RESOURCING,VIV001,01/06/2022,202672,583,time sheet we 15.5.22 dm
Eden District Council,http://opendatacommunities.org/id/district-council/eden,Human Resources Manager,Staff Development,Training Expenses,UNIVERSITY OF DERBY,UNI044,01/06/2022,202677,905,SPONSORSHIP 21-22 CO
Eden District Council,http://opendatacommunities.org/id/district-council/eden,Information Technology Manager,Information Technology,IT Contracts & Maintenance,THE NETWORKING PEOPLE (NORTHWEST) LIMITED,TNP001,01/06/2022,202373,650,TNP PRO SERVICES -DAAS
Eden District Council,http://opendatacommunities.org/id/district-council/eden,Information Technology Manager,Information Technology,Computer equipment,ACADEMIA LTD,ACA004,01/06/2022,202383,1558.5,PHONES
Eden District Council,http://opendatacommunities.org/id/district-council/eden,Information Technology Manager,Information Technology,Government Connect,NOMINET,NOM001,01/06/2022,202438,765.94,LOT 1 DNS SERVICES QTR1 FEB 22 - APR22
Eden District Council,http://opendatacommunities.org/id/district-council/eden,Community Service Assistant Director,Queens Platinum Jubliee,Grants and contributions,KIRKBY STEPHEN TOWN COUNCIL,KIR014,01/06/2022,202815,800,QUEENS PLATINUM JUBILEE GRANT
Eden District Council,http://opendatacommunities.org/id/district-council/eden,Community Service Assistant Director,Queens Platinum Jubliee,Grants and contributions,ALSTON RECREATION GROUND TRUST,ALS014,01/06/2022,202816,800,QUEENS PLATINUM JUBILEE GRANT
Eden District Council,http://opendatacommunities.org/id/district-council/eden,Community Service Assistant Director,Queens Platinum Jubliee,Grants and contributions,CASTLE SOWERBY PARISH COUNCIL,CAS001,01/06/2022,202821,640,QUEENS PLATINUM JUBILEE GRANT
Eden District Council,http://opendatacommunities.org/id/district-council/eden,Community Service Assistant Director,Queens Platinum Jubliee,Grants and contributions,PENRITH CRICKET SPORTS AND SOCIAL CLUB,PEN023,01/06/2022,202822,640,QUEENS PLATINUM JUBILEE GRANT
Eden District Council,http://opendatacommunities.org/id/district-council/eden,Information Technology Manager,Information Technology,Government Connect,VODAFONE LTD,VOD003,01/06/2022,202543,1361.36,QUARTERLY CHARGES
Eden District Council,http://opendatacommunities.org/id/district-council/eden,Commercial Services Manager,Commercial Services,Agency Staff,VIVID RESOURCING,VIV001,01/06/2022,202804,4375,TIME SHEET WE 22.5.22 FM
Eden District Council,http://opendatacommunities.org/id/district-council/eden,Commercial Services Manager,Commercial Services,Agency Staff,VIVID RESOURCING,VIV001,01/06/2022,202807,2750,TIME SHEET WE 22.5.22 GM
Eden District Council,http://opendatacommunities.org/id/district-council/eden,Planning Services,Planning Services,Agency Staff,VIVID RESOURCING,VIV001,01/06/2022,202808,2500,TIME SHEET WE 22.5.22 JS
Eden District Council,http://opendatacommunities.org/id/district-council/eden,Legal Services Manager,Register of Electors,Training Expenses,ASSOCIATION OF ELECTORAL ADMINISTRATION,ASS003,01/06/2022,202811,775,AEA ELECTIONS SEMINAR BHAM SPET22
Eden District Council,http://opendatacommunities.org/id/district-council/eden,Environmental Services,Environmental Services,Agency Staff,VIVID RESOURCING,VIV001,01/06/2022,202576,1180,TIME SHEET WE 08.5.22 BN
Eden District Council,http://opendatacommunities.org/id/district-council/eden,Environmental Services,Environmental Services,Agency Staff,VIVID RESOURCING,VIV001,01/06/2022,202668,1310,TIME SHEET WE 15.5.22 BN
Eden District Council,http://opendatacommunities.org/id/district-council/eden,Environmental Services,Other Environmental Health,Professional fees,UNITED UTILITIES WATER PLC,UNI024,01/06/2022,202278,1104.63,income labs mar22
Eden District Council,http://opendatacommunities.org/id/district-council/eden,Environmental Services,Other Environmental Health,Professional fees,UNITED UTILITIES WATER PLC,UNI024,01/06/2022,202801,868.37,income labs apr 22
Eden District Council,http://opendatacommunities.org/id/district-council/eden,Financial Services Manager,Collection fund,BRRS Central Share,CUMBRIA COUNTY COUNCIL,EDC001,01/06/2022,226514,613905,Collection Fund BRRS Central Share
Eden District Council,http://opendatacommunities.org/id/district-council/eden,Financial Services Manager,Collection fund,County Council Precept,CUMBRIA COUNTY COUNCIL,EDC001,01/06/2022,226515,113686,County Council Precept
Eden District Council,http://opendatacommunities.org/id/district-council/eden,Financial Services Manager,Corporate Costs,Loan Provision,HEART OF CUMBRIA,EDC001,01/06/2022,226516,240000,Heart of Cumbria Loan
Eden District Council,http://opendatacommunities.org/id/district-council/eden,Revenue/Benefits Manager,Business Rate Refunds,Unique payments ****,REDACTED INFORMATION,EDC001,01/06/2022,226518,1242.17,Business Rates Refund
Eden District Council,http://opendatacommunities.org/id/district-council/eden,Revenue/Benefits Manager,Benefits,Unique payments ****,REDACTED INFORMATION,EDC001,01/06/2022,226519,4733.57,COUNCIL TAX REFUND
Eden District Council,http://opendatacommunities.org/id/district-council/eden,Revenue/Benefits Manager,Benefits,Recoverable charges,REDACTED INFORMATION,EDC001,01/06/2022,226520,1677.38,HOUSING BENEFIT
Eden District Council,http://opendatacommunities.org/id/district-council/eden,Revenue/Benefits Manager,Benefits,Rent allowance,REDACTED INFORMATION,EDC001,01/06/2022,226521,4868.84,HOUSING BENEFIT
Eden District Council,http://opendatacommunities.org/id/district-council/eden,Financial Services Manager,Budget Balance Codes - 2022-23,Income (personal Accounts),Corporate Costs,EDC001,01/06/2022,226525,552,PARISH PRECEPTS
Eden District Council,http://opendatacommunities.org/id/district-council/eden,Revenue/Benefits Manager,Business Rate Refunds,Unique payments ****,REDACTED INFORMATION,EDC001,01/06/2022,226650,11737.53,COUNCIL TAX REFUND
Eden District Council,http://opendatacommunities.org/id/district-council/eden,Financial Services Manager,Corporate Costs,Bank charges,BARCLAYCARD,EDC001,01/06/2022,226705,3045.28,BARCLAYCARD
Eden District Council,http://opendatacommunities.org/id/district-council/eden,Revenue/Benefits Manager,Benefits,Rent allowance,REDACTED INFORMATION,EDC001,01/06/2022,226983,1700.29,HOUSING BENEFIT
Eden District Council,http://opendatacommunities.org/id/district-council/eden,Revenue/Benefits Manager,Benefits,Rent allowance,REDACTED INFORMATION,EDC001,01/06/2022,226984,926.46,HOUSING BENEFIT
